bitfinex/quotes_BTCUSD_20251116
["timestamp","ask_amount","ask_price","bid_price","bid_amount"]
[1763265967009,0.50900547,95921.0,95920.0,0.0004]
[1763265967202,0.48862147,95921.0,95920.0,0.0004]
[1763265967618,0.50496147,95921.0,95920.0,0.0004]
[1763265968490,0.50396147,95921.0,95920.0,0.0004]
[1763265974599,0.48762147,95921.0,95920.0,0.0004]
[1763265976144,0.47125655,95921.0,95920.0,0.0004]
[1763265976330,5.618e-05,95921.0,95920.0,0.0004]
[1763265977305,0.10160718,95921.0,95920.0,0.0004]
[1763265977509,0.10580218,95921.0,95920.0,0.0004]
[1763265981280,0.12232218,95921.0,95920.0,0.0004]
[1763265981911,0.4648161,95921.0,95920.0,0.0004]
[1763265984683,0.4658161,95921.0,95920.0,0.0004]
[1763265985897,0.8112872,95921.0,95920.0,0.0004]
[1763265986086,0.81673972,95921.0,95920.0,0.0004]
[1763265986740,0.83651661,95921.0,95920.0,0.0004]
[1763265986946,0.74296916,95921.0,95920.0,0.0004]
[1763265987577,0.53446425,95921.0,95920.0,0.0004]
[1763265987945,0.72319227,95921.0,95920.0,0.0004]
[1763265988154,0.7429714,95921.0,95920.0,0.0004]
[1763265989565,0.75933674,95921.0,95920.0,0.0004]
[1763265989876,0.7429714,95921.0,95920.0,0.0004]
[1763265991354,0.74296746,95921.0,95920.0,0.0004]
[1763265991968,0.51468736,95921.0,95920.0,0.0004]
[1763265992166,0.51886759,95921.0,95920.0,0.0004]
[1763265992684,0.74373787,95921.0,95920.0,0.0004]
[1763265994248,0.76351179,95921.0,95920.0,0.0004]
[1763265995065,0.86718117,95921.0,95920.0,0.0004]
[1763265995856,0.76351179,95921.0,95920.0,0.0004]
[1763266001523,0.55500688,95921.0,95920.0,0.0004]
[1763266003564,0.53523296,95921.0,95920.0,0.0004]
[1763266005196,0.55496801,95921.0,95920.0,0.0004]
[1763266005410,0.76347292,95921.0,95920.0,0.0004]
[1763266005640,0.53523296,95921.0,95920.0,0.0004]
[1763266006425,0.74373787,95921.0,95920.0,0.0004]
[1763266006938,0.53523296,95921.0,95920.0,0.0004]
[1763266007141,0.74373787,95921.0,95920.0,0.0004]
[1763266007992,0.76347814,95921.0,95920.0,0.0004]
[1763266008959,0.55497323,95921.0,95920.0,0.0004]
[1763266009368,0.76347814,95921.0,95920.0,0.0004]
[1763266010850,0.86714752,95921.0,95920.0,0.0004]
[1763266011164,0.85078215,95921.0,95920.0,0.0004]
[1763266019676,0.74711277,95921.0,95920.0,0.0004]
[1763266024895,0.76347898,95921.0,95920.0,0.0004]
[1763266025062,0.74711277,95921.0,95920.0,0.0004]
[1763266027770,0.76347911,95921.0,95920.0,0.0004]
[1763266037305,0.5549742,95921.0,95920.0,0.0004]
[1763266037547,0.51155546,95921.0,95920.0,0.0004]
[1763266037737,0.48763496,95921.0,95920.0,0.0004]
[1763266037944,0.5310537,95921.0,95920.0,0.0004]
[1763266038139,0.48763496,95921.0,95920.0,0.0004]
[1763266038378,0.49816736,95921.0,95920.0,0.0004]
[1763266038529,0.13174862,95921.0,95920.0,0.0004]
[1763266038730,0.45474862,95921.0,95920.0,0.0004]
[1763266038934,0.02600262,95921.0,95920.0,0.0004]
[1763266039150,0.02600262,95921.0,95903.0,0.02424]
[1763266039151,0.02600262,95921.0,95918.0,0.0109]
[1763266039152,0.00105618,95921.0,95918.0,0.0109]
[1763266039352,0.00105618,95921.0,95920.0,0.01503]
[1763266039998,0.13945618,95921.0,95920.0,0.01503]
[1763266040201,5.618e-05,95921.0,95918.0,0.0109]
[1763266042988,0.52396,95919.0,95899.0,0.02384]
[1763266043187,0.38858794,95914.0,95899.0,0.04768]
[1763266043442,0.38858794,95914.0,95905.0,0.0109]
[1763266044410,0.39917219,95914.0,95905.0,0.0109]
[1763266044629,0.39917219,95914.0,95905.0,0.0119]
[1763266047681,0.39917219,95914.0,95906.0,0.02384]
[1763266047682,0.38858794,95914.0,95906.0,0.02384]
[1763266049026,0.323,95915.0,95906.0,0.02384]
[1763266051084,0.323,95915.0,95914.0,0.0109]
[1763266051316,5.618e-05,95921.0,95914.0,0.02593]
[1763266051513,5.618e-05,95921.0,95915.0,0.02304]
[1763266051937,0.01636304,95920.0,95915.0,0.02304]
[1763266052281,5.618e-05,95921.0,95915.0,0.02304]
[1763266060144,5.618e-05,95921.0,95915.0,0.04389179]
[1763266060341,5.618e-05,95921.0,95916.0,0.02304]
[1763266060731,5.618e-05,95921.0,95917.0,0.0109]
[1763266061135,5.618e-05,95921.0,95918.0,0.02304]
[1763266065652,5.618e-05,95921.0,95920.0,0.0109]
[1763266076969,1.617e-05,95921.0,95920.0,0.02679]
[1763266077171,1.617e-05,95921.0,95920.0,0.0109]
[1763266077422,1.617e-05,95921.0,95920.0,0.0317507]
[1763266078761,1.617e-05,95921.0,95920.0,0.0327507]
[1763266080093,1.617e-05,95921.0,95920.0,0.0337507]
[1763266086518,1.617e-05,95921.0,95920.0,0.09004775]
[1763266086939,1.617e-05,95921.0,95920.0,0.0337507]
[1763266087347,1.617e-05,95921.0,95920.0,0.09004622]
[1763266089104,1.617e-05,95921.0,95920.0,0.0337507]
[1763266089874,1.617e-05,95921.0,95920.0,0.0129]
[1763266091125,1.617e-05,95921.0,95920.0,0.03608]
[1763266091615,1.617e-05,95921.0,95920.0,0.0129]
[1763266092182,1.617e-05,95921.0,95920.0,0.0119]
[1763266092884,1.617e-05,95921.0,95920.0,0.03408]
[1763266093087,1.617e-05,95921.0,95920.0,0.03508]
[1763266093262,1.617e-05,95921.0,95920.0,0.03448]
[1763266093497,1.617e-05,95921.0,95920.0,0.0119]
[1763266094019,1.617e-05,95921.0,95920.0,0.0327507]
[1763266095261,1.617e-05,95921.0,95920.0,0.0119]
[1763266099561,1.617e-05,95921.0,95920.0,0.03448]
[1763266099973,1.617e-05,95921.0,95920.0,0.0119]
[1763266103789,1.617e-05,95921.0,95920.0,0.03448]
[1763266104207,1.617e-05,95921.0,95920.0,0.0119]
[1763266105063,1.617e-05,95921.0,95920.0,0.0327507]
[1763266109352,1.617e-05,95921.0,95920.0,0.0119]
[1763266113378,1.617e-05,95921.0,95920.0,0.0327507]
[1763266118728,1.617e-05,95921.0,95920.0,0.0119]
[1763266122302,1.617e-05,95921.0,95920.0,0.06819552]
[1763266126975,1.617e-05,95921.0,95920.0,0.0327507]
[1763266127113,0.01636076,95938.0,95920.0,0.0486207]
[1763266127320,0.01636076,95938.0,95937.0,0.12112891]
[1763266127767,0.01636076,95938.0,95937.0,0.10525891]
[1763266132126,0.38833546,95947.0,95946.0,0.0109]
[1763266132330,0.323,95953.0,95946.0,0.0109]
[1763266132489,0.15193,95952.0,95946.0,0.0109]
[1763266132677,0.65193,95952.0,95946.0,0.0109]
[1763266133387,0.001,95947.0,95946.0,0.0109]
[1763266134696,0.10238,95952.0,95946.0,0.0109]
[1763266135031,0.60338,95952.0,95946.0,0.0109]
[1763266135247,0.501,95952.0,95946.0,0.0109]
[1763266136966,0.502,95952.0,95946.0,0.0109]
[1763266137792,0.109216,95951.0,95946.0,0.0109]
[1763266138948,0.110216,95951.0,95946.0,0.0109]
[1763266139150,0.196321,95950.0,95946.0,0.0109]
[1763266139591,0.17045,95950.0,95946.0,0.0109]
[1763266139991,0.104838,95950.0,95946.0,0.0109]
[1763266140367,0.104838,95950.0,95940.0,0.0109]
[1763266140727,0.104838,95950.0,95897.0,0.1314233]
[1763266140728,0.02756,95941.0,95925.0,0.0109]
[1763266140929,0.38833546,95935.0,95926.0,0.10525891]
[1763266141269,0.38833546,95935.0,95926.0,0.12786891]
[1763266141698,0.38833546,95935.0,95926.0,0.10525891]
[1763266141896,0.38833546,95935.0,95927.0,0.02261]
[1763266144815,0.38833546,95935.0,95926.0,0.0109]
[1763266145596,0.0363,95934.0,95925.0,0.0109]
[1763266149128,0.01207,95934.0,95925.0,0.0109]
[1763266152504,0.01207,95934.0,95926.0,0.0109]
[1763266157471,0.323,95935.0,95926.0,0.0109]
[1763266157681,0.323,95935.0,95927.0,0.0236]
[1763266160351,0.0163608,95938.0,95936.0,0.0261]
[1763266160592,0.38833546,95946.0,95937.0,0.0152]
[1763266160763,0.38833546,95946.0,95937.0,0.0388]
[1763266160956,0.38833546,95946.0,95945.0,0.0261]
[1763266161156,0.323,95954.0,95945.0,0.0261]
[1763266161393,0.51951781,95953.0,95946.0,0.0345]
[1763266161590,0.38833546,95955.0,95946.0,0.0345]
[1763266161952,0.102329,95953.0,95946.0,0.0345]
[1763266162194,0.323,95954.0,95946.0,0.0345]
[1763266162603,0.667657,95953.0,95946.0,0.0109]
[1763266162804,0.646309,95953.0,95946.0,0.0109]
[1763266164118,0.182225,95952.0,95946.0,0.0109]
[1763266164533,0.161701,95952.0,95946.0,0.0109]
[1763266164692,0.132387,95952.0,95946.0,0.0109]
[1763266165694,0.176016,95951.0,95946.0,0.0109]
[1763266165902,0.676016,95951.0,95946.0,0.0109]
[1763266166102,0.64893,95951.0,95946.0,0.0109]
[1763266166329,0.14893,95951.0,95946.0,0.0109]
[1763266167082,0.153413,95950.0,95946.0,0.0109]
[1763266167471,0.001,95951.0,95946.0,0.0109]
[1763266168290,0.002,95951.0,95946.0,0.0109]
[1763266168478,0.001,95951.0,95946.0,0.0109]
[1763266168833,0.001,95950.0,95946.0,0.0109]
[1763266169043,0.001,95950.0,95947.0,0.11795891]
[1763266169246,0.001,95951.0,95948.0,0.0236]
[1763266169467,0.002,95951.0,95950.0,0.0109]
[1763266170093,0.38833546,95960.0,95959.0,0.0261]
[1763266170294,0.00866,95974.0,95959.0,0.0261]
[1763266170295,0.323,95968.0,95959.0,0.0261]
[1763266170473,0.01635656,95960.0,95959.0,0.0261]
[1763266170655,0.01640163,95960.0,95959.0,0.0261]
[1763266171056,4.507e-05,95960.0,95959.0,0.0261]
[1763266171326,0.01640149,95960.0,95959.0,0.0261]
[1763266171456,0.01640149,95960.0,95959.0,0.0109]
[1763266171457,4.507e-05,95960.0,95959.0,0.0109]
[1763266171659,0.01640078,95960.0,95959.0,0.0109]
[1763266171922,0.01640078,95960.0,95959.0,0.037]
[1763266172263,4.507e-05,95960.0,95959.0,0.037]
[1763266173094,4.507e-05,95960.0,95959.0,0.09419133]
[1763266173297,4.507e-05,95960.0,95959.0,0.038]
[1763266173499,4.507e-05,95960.0,95959.0,0.039]
[1763266177224,4.507e-05,95960.0,95959.0,0.63468331]
[1763266177428,0.5,96017.0,95970.0,0.01999998]
[1763266177630,0.01222,96019.0,95994.0,0.09435891]
[1763266177631,0.25870784,96010.0,95994.0,0.09435891]
[1763266178074,0.25870784,96010.0,96009.0,0.0109]
[1763266178283,4.508e-05,96014.0,96009.0,0.0109]
[1763266178838,4.508e-05,96014.0,96010.0,0.0247]
[1763266179339,4.508e-05,96014.0,96010.0,0.0237]
[1763266179512,0.00104508,96014.0,96010.0,0.0237]
[1763266180629,4.508e-05,96014.0,96010.0,0.0237]
[1763266181053,0.00104508,96014.0,96010.0,0.0237]
[1763266183088,0.00104508,96014.0,95998.0,0.0109]
[1763266183089,0.02428,96011.0,95998.0,0.0109]
[1763266183310,0.58170784,96008.0,95998.0,0.0109]
[1763266183513,0.323,96006.0,95993.0,0.0109]
[1763266183685,0.25870784,96002.0,95993.0,0.0109]
[1763266186718,0.25870784,96002.0,96001.0,0.0272]
[1763266186865,0.0231,96010.0,96001.0,0.0109]
[1763266187070,0.0231,96010.0,95994.0,0.0247]
[1763266187071,0.323,96008.0,95994.0,0.0247]
[1763266187276,0.323,96006.0,95993.0,0.0109]
[1763266188322,0.25870784,96003.0,95993.0,0.0109]
[1763266189832,4.508e-05,96014.0,96002.0,0.0272]
[1763266190166,0.01939982,96013.0,96008.0,0.0163]
[1763266190370,0.34239982,96013.0,96008.0,0.0163]
[1763266190534,0.01939982,96012.0,96009.0,0.0109]
[1763266190713,0.01939982,96011.0,96009.0,0.0109]
[1763266190936,4.508e-05,96014.0,96010.0,0.0247]
[1763266192094,4.508e-05,96014.0,96013.0,0.09435891]
[1763266194169,4.508e-05,96014.0,96013.0,0.09853288]
[1763266194368,4.508e-05,96014.0,96013.0,0.11936339]
[1763266194618,4.508e-05,96014.0,96013.0,0.12036339]
[1763266195071,4.508e-05,96014.0,96013.0,0.09953288]
[1763266195229,4.508e-05,96014.0,96013.0,0.10053288]
[1763266199377,0.01949367,96014.0,96013.0,0.10053288]
[1763266200124,0.01949367,96014.0,96013.0,0.09635891]
[1763266202343,0.01949367,96014.0,96013.0,0.12939836]
[1763266202697,4.508e-05,96014.0,96013.0,0.13542461]
[1763266202888,0.0002,96030.0,96029.0,0.09435891]
[1763266203031,0.0002,96030.0,96029.0,0.12026891]
[1763266203032,0.01950938,96030.0,96029.0,0.12026891]
[1763266203231,0.01950938,96030.0,96029.0,0.10475891]
[1763266203632,0.0002,96040.0,96030.0,0.05341873]
[1763266203835,0.0002,96040.0,96039.0,0.02641]
[1763266203836,0.00024504,96040.0,96039.0,0.02641]
[1763266204338,0.00024504,96040.0,96039.0,0.0109]
[1763266205159,0.0002,96070.0,96049.0,0.01551]
[1763266205367,0.0002,96070.0,96059.0,0.12026891]
[1763266205368,0.00024505,96060.0,96059.0,0.12026891]
[1763266205825,0.00024505,96060.0,96059.0,0.10475891]
[1763266206197,0.00024505,96060.0,96059.0,0.43193066]
[1763266206520,0.00024505,96060.0,96059.0,0.10993066]
[1763266206961,0.00024505,96060.0,96059.0,0.10475891]
[1763266207161,0.00024505,96060.0,96059.0,0.10675891]
[1763266207584,0.00024505,96060.0,96059.0,0.10475891]
[1763266207932,0.00024505,96060.0,96059.0,0.10675891]
[1763266210976,0.00024505,96060.0,96059.0,0.12757944]
[1763266211277,0.00024505,96060.0,96059.0,0.0124]
[1763266211484,0.00054363,96060.0,96059.0,0.0124]
[1763266212004,0.00054363,96060.0,96059.0,0.0114]
[1763266212336,0.00054363,96060.0,96059.0,0.03122053]
[1763266212499,0.00054363,96060.0,96059.0,0.03222053]
[1763266212718,0.00054363,96060.0,96059.0,0.03122053]
[1763266213141,0.00054363,96060.0,96059.0,0.03222053]
[1763266213342,0.00054363,96060.0,96059.0,0.03322053]
[1763266215531,0.00054363,96060.0,96059.0,0.03739232]
[1763266216157,0.00054363,96060.0,96059.0,0.01657179]
[1763266216376,0.00054363,96060.0,96059.0,0.0124]
[1763266217040,0.00054363,96060.0,96059.0,0.0114]
[1763266217255,0.00054363,96060.0,96059.0,0.0124]
[1763266217480,0.00054363,96060.0,96059.0,0.002]
[1763266217885,0.01992261,96060.0,96059.0,0.002]
[1763266218088,0.01992261,96060.0,96059.0,0.001]
[1763266218289,0.01992583,96060.0,96059.0,0.001]
[1763266218505,0.01992583,96060.0,96039.0,0.01065]
[1763266218506,0.01992583,96060.0,96045.0,0.02304]
[1763266218716,0.0193822,96059.0,96045.0,0.02304]
[1763266219337,0.0193822,96058.0,96045.0,0.02304]
[1763266219657,0.0193822,96057.0,96045.0,0.02304]
[1763266219880,0.0193822,96056.0,96045.0,0.02304]
[1763266220258,0.46120274,96060.0,96045.0,0.02304]
[1763266220259,0.0193822,96055.0,96045.0,0.02304]
[1763266220458,0.0193822,96054.0,96045.0,0.02304]
[1763266220694,0.0193822,96053.0,96045.0,0.02304]
[1763266220928,0.0193822,96052.0,96045.0,0.02304]
[1763266221103,0.0193822,96051.0,96045.0,0.02304]
[1763266221313,0.0193822,96050.0,96045.0,0.02304]
[1763266221509,0.0193822,96049.0,96045.0,0.02304]
[1763266223215,0.0193822,96058.0,96045.0,0.02304]
[1763266223417,0.0193822,96057.0,96045.0,0.02304]
[1763266223623,0.0193822,96056.0,96045.0,0.02304]
[1763266223739,0.0193822,96055.0,96045.0,0.02304]
[1763266223951,0.0193822,96054.0,96045.0,0.02304]
[1763266224166,0.0193822,96053.0,96048.0,0.03394]
[1763266224414,0.0193822,96052.0,96048.0,0.03394]
[1763266224626,0.0193822,96051.0,96049.0,0.02304]
[1763266224833,0.0193822,96050.0,96049.0,0.02304]
[1763266225600,0.0193822,96057.0,96049.0,0.02304]
[1763266225780,0.01944222,96056.0,96050.0,0.01065]
[1763266226012,0.01944222,96055.0,96050.0,0.01065]
[1763266226178,0.01944222,96054.0,96050.0,0.03369]
[1763266226379,0.01944222,96053.0,96050.0,0.03369]
[1763266226584,0.01944222,96052.0,96050.0,0.03369]
[1763266226960,0.01944222,96051.0,96050.0,0.01065]
[1763266227379,0.01945196,96051.0,96050.0,0.01065]
[1763266227582,0.01945195,96057.0,96051.0,0.02304]
[1763266227770,0.01945196,96056.0,96052.0,0.02082205]
[1763266227977,0.01945196,96055.0,96053.0,0.02082183]
[1763266228200,0.0002443,96058.0,96051.0,0.02304]
[1763266228400,0.0002443,96058.0,96054.0,0.09435891]
[1763266228605,0.0002443,96058.0,96055.0,0.0208214]
[1763266228822,0.0002443,96058.0,96056.0,0.02082118]
[1763266229027,0.0002443,96058.0,96057.0,0.02082097]
[1763266229646,0.0002443,96058.0,96050.0,0.01065]
[1763266229845,0.0002443,96058.0,96051.0,0.09435891]
[1763266229966,0.0002443,96058.0,96051.0,0.11739891]
[1763266230167,0.0002443,96058.0,96052.0,0.02304]
[1763266232082,0.0002443,96058.0,96053.0,0.02082183]
[1763266232565,0.0002443,96058.0,96054.0,0.02482]
[1763266232724,0.0002443,96058.0,96055.0,0.0208214]
[1763266232925,0.0002443,96058.0,96056.0,0.02482]
[1763266235744,0.0002443,96058.0,96057.0,0.0104]
[1763266236718,0.0002443,96058.0,96057.0,0.03522]
[1763266237901,0.0002443,96058.0,96057.0,0.0104]
[1763266239330,0.0002443,96058.0,96057.0,0.02621927]
[1763266241177,0.0002443,96058.0,96057.0,0.0104]
[1763266241592,0.0002443,96058.0,96057.0,0.02668877]
[1763266241759,0.0002443,96058.0,96057.0,0.0104]
[1763266252734,0.0002443,96058.0,96057.0,0.03522]
[1763266253130,0.0002443,96058.0,96057.0,0.0104]
[1763266257377,0.0002443,96058.0,96057.0,0.03122097]
[1763266257578,0.0002,96070.0,96057.0,0.03122097]
[1763266257579,0.38745287,96070.0,96066.0,0.027]
[1763266257779,0.00065053,96070.0,96069.0,0.09435891]
[1763266258841,0.00065053,96070.0,96066.0,0.01065]
[1763266259010,0.00065053,96070.0,96069.0,0.0561748]
[1763266259213,0.00065053,96070.0,96066.0,0.01065]
[1763266259414,0.00065053,96070.0,96067.0,0.02482]
[1763266261637,0.00065053,96070.0,96068.0,0.07699338]
[1763266261838,0.00065053,96070.0,96068.0,0.02081858]
[1763266262045,0.00065053,96070.0,96069.0,0.0241]
[1763266262301,0.00065053,96070.0,96069.0,0.04491837]
[1763266262753,0.00065053,96070.0,96069.0,0.02081837]
[1763266265255,0.00065053,96070.0,96069.0,0.07689324]
[1763266265632,0.0009762,96070.0,96069.0,0.02081837]
[1763266265832,0.0009762,96070.0,96067.0,0.0208188]
[1763266266049,0.0002714,96068.0,96067.0,0.0449188]
[1763266266475,0.0002714,96068.0,96067.0,0.0208188]
[1763266266685,0.0002714,96068.0,96066.0,0.01065]
[1763266266897,0.00065053,96070.0,96067.0,0.0241]
[1763266267102,0.00065053,96070.0,96069.0,0.05605567]
[1763266268698,0.00065053,96070.0,96066.0,0.01065]
[1763266269214,0.00065053,96070.0,96067.0,0.0449188]
[1763266269509,0.00065053,96070.0,96069.0,0.05603551]
[1763266269718,0.00065053,96070.0,96069.0,0.07685388]
[1763266269921,0.00065053,96070.0,96069.0,0.05603551]
[1763266270122,0.00065053,96070.0,96067.0,0.05603551]
[1763266270683,0.00065053,96070.0,96068.0,0.0241]
[1763266271705,0.00065053,96070.0,96068.0,0.08013551]
[1763266271908,0.00065053,96070.0,96069.0,0.02081837]
[1763266272231,0.00065053,96070.0,96068.0,0.05603551]
[1763266272609,0.00029853,96069.0,96068.0,0.05603551]
[1763266272965,0.00029853,96069.0,96068.0,0.07685409]
[1763266273137,0.00029853,96069.0,96068.0,0.02081858]
[1763266274064,0.00029853,96069.0,96067.0,0.0208188]
[1763266274267,0.00065053,96070.0,96067.0,0.0208188]
[1763266274476,0.00065053,96070.0,96069.0,0.05602354]
[1763266274651,0.00065053,96070.0,96069.0,0.07684191]
[1763266275538,0.00065053,96070.0,96069.0,0.05602354]
[1763266275739,0.00065053,96070.0,96067.0,0.05602354]
[1763266275948,0.00065053,96070.0,96067.0,0.07983354]
[1763266276142,0.00065053,96070.0,96068.0,0.07983354]
[1763266276558,0.00065053,96070.0,96069.0,0.02381]
[1763266278906,0.00065053,96070.0,96069.0,0.03735824]
[1763266279111,0.00065053,96070.0,96064.0,0.0109]
[1763266279468,0.0002714,96068.0,96065.0,0.02381]
[1763266279673,0.00065053,96070.0,96065.0,0.02381]
[1763266280114,0.00065053,96070.0,96064.0,0.0109]
[1763266280414,0.00065053,96070.0,96060.0,0.01065]
[1763266280648,0.79992627,96070.0,96060.0,0.01065]
[1763266280793,0.79992627,96070.0,96057.0,0.0104]
[1763266280794,0.722544,96069.0,96057.0,0.0104]
[1763266280975,0.77450574,96067.0,96054.0,0.01065]
[1763266281205,0.77450574,96064.0,96054.0,0.01065]
[1763266281413,0.01127,96066.0,96054.0,0.01065]
[1763266281609,0.01127,96066.0,96046.0,0.06642354]
[1763266281610,0.01127,96066.0,96043.0,0.03735824]
[1763266281611,0.0277,96055.0,96043.0,0.03735824]
[1763266281810,0.312028,96054.0,96041.0,0.03735824]
[1763266282008,0.38725287,96053.0,96041.0,0.03735824]
[1763266282215,0.38725287,96053.0,96040.0,0.02381]
[1763266282216,0.324087,96052.0,96042.0,0.03421]
[1763266282478,0.38725287,96052.0,96042.0,0.03421]
[1763266282680,0.38725287,96052.0,96043.0,0.02381]
[1763266288192,0.0163398,96056.0,96051.0,0.02645]
[1763266288392,0.0163398,96056.0,96052.0,0.02381]
[1763266288859,0.0163398,96056.0,96053.0,0.02082183]
[1763266289262,0.0163398,96056.0,96054.0,0.02381]
[1763266289509,0.0163398,96056.0,96055.0,0.0208214]
[1763266290550,0.3879034,96070.0,96064.0,0.0158]
[1763266290764,0.00065053,96070.0,96066.0,0.0158]
[1763266291827,0.00124426,96067.0,96066.0,0.0158]
[1763266293043,0.00024426,96067.0,96066.0,0.0158]
[1763266293252,0.00124426,96067.0,96066.0,0.0158]
[1763266293820,0.00024426,96067.0,96066.0,0.0158]
[1763266294020,0.00124426,96067.0,96066.0,0.0158]
[1763266294609,0.00024426,96067.0,96066.0,0.0158]
[1763266294965,0.00124426,96067.0,96066.0,0.0158]
[1763266295321,0.00124426,96067.0,96064.0,0.01065]
[1763266295955,0.00124426,96067.0,96056.0,0.0109]
[1763266296163,0.25812386,96066.0,96059.0,0.01065]
[1763266296467,0.25812386,96066.0,96056.0,0.0109]
[1763266296635,0.25812386,96066.0,96040.0,0.01633695]
[1763266296636,0.02713,96057.0,96048.0,0.0109]
[1763266297063,0.01127,96057.0,96048.0,0.0109]
[1763266297929,0.01227,96057.0,96048.0,0.0109]
[1763266298153,0.01327,96057.0,96048.0,0.0109]
[1763266301441,0.002,96057.0,96056.0,0.01593]
[1763266301856,0.002,96057.0,96055.0,0.01065]
[1763266302314,0.001,96057.0,96055.0,0.01065]
[1763266302550,0.001,96057.0,96056.0,0.02309]
[1763266303829,0.25812386,96066.0,96056.0,0.02309]
[1763266304037,0.00024426,96067.0,96056.0,0.02309]
[1763266304038,0.00024426,96067.0,96065.0,0.01065]
[1763266306059,0.001,96066.0,96065.0,0.01065]
[1763266306274,0.00124426,96067.0,96065.0,0.01065]
[1763266306490,0.00024426,96067.0,96065.0,0.01065]
[1763266306694,0.00124426,96067.0,96065.0,0.01065]
[1763266306893,0.00224426,96067.0,96065.0,0.01065]
[1763266307085,0.00024426,96067.0,96065.0,0.01065]
[1763266307428,0.00224426,96067.0,96065.0,0.01065]
[1763266310530,0.00224426,96067.0,96049.0,0.05602354]
[1763266310531,0.889959,96065.0,96053.0,0.03735824]
[1763266310858,0.889959,96065.0,96048.0,0.06692354]
[1763266310859,0.00224426,96067.0,96055.0,0.09435891]
[1763266311068,0.00224426,96067.0,96066.0,0.02658]
[1763266311559,0.00224426,96067.0,96066.0,0.04967]
[1763266311765,0.00124426,96067.0,96066.0,0.03374]
[1763266311970,0.00124426,96067.0,96066.0,0.01065]
[1763266312585,0.00024426,96067.0,96066.0,0.01065]
[1763266312797,0.00124426,96067.0,96066.0,0.01065]
[1763266313000,0.00224426,96067.0,96066.0,0.01065]
[1763266313201,0.00024426,96067.0,96066.0,0.01065]
[1763266314355,0.00024426,96067.0,96066.0,0.04801747]
[1763266315398,0.00024426,96067.0,96066.0,0.01065]
[1763266325162,0.00024426,96067.0,96057.0,0.03736981]
[1763266325163,0.02661426,96067.0,96057.0,0.03736981]
[1763266325407,0.01506,96065.0,96055.0,0.01065]
[1763266325609,0.323,96066.0,96055.0,0.01065]
[1763266325826,0.323,96066.0,96055.0,0.03519]
[1763266326229,0.323,96066.0,96056.0,0.02454]
[1763266327901,0.324,96066.0,96056.0,0.02454]
[1763266328886,0.325,96066.0,96056.0,0.02454]
[1763266330692,0.02178,96057.0,96050.0,0.03736981]
[1763266330898,0.00672,96061.0,96048.0,0.07255981]
[1763266331095,0.51624772,96060.0,96049.0,0.09435891]
[1763266331511,0.51624772,96060.0,96050.0,0.02454]
[1763266334977,0.25812386,96060.0,96050.0,0.02454]
[1763266336118,0.51624772,96060.0,96050.0,0.02454]
[1763266338216,0.25812386,96060.0,96050.0,0.02454]
[1763266339637,0.25812386,96060.0,96049.0,0.03736981]
[1763266339638,0.774512,96059.0,96049.0,0.03736981]
[1763266339885,0.538112,96058.0,96048.0,0.01065]
[1763266340092,0.218331,96059.0,96048.0,0.03431]
[1763266340216,0.5,96059.0,96048.0,0.03431]
[1763266340423,0.00024426,96067.0,96048.0,0.03431]
[1763266340424,0.00024426,96067.0,96058.0,0.02569]
[1763266340736,0.00024426,96067.0,96066.0,0.02569]
[1763266341942,0.00124426,96067.0,96066.0,0.02569]
[1763266342808,0.00024426,96067.0,96066.0,0.02569]
[1763266343023,0.00124426,96067.0,96066.0,0.02569]
[1763266343201,0.00224426,96067.0,96066.0,0.02569]
[1763266343801,0.00124426,96067.0,96066.0,0.04935]
[1763266344207,0.00224426,96067.0,96066.0,0.02569]
[1763266344383,0.00124426,96067.0,96066.0,0.02569]
[1763266344586,0.00224426,96067.0,96066.0,0.02569]
[1763266344781,0.00124426,96067.0,96066.0,0.02569]
[1763266345248,0.00224426,96067.0,96066.0,0.02569]
[1763266346778,0.00124426,96067.0,96066.0,0.02569]
[1763266346977,0.00224426,96067.0,96066.0,0.02569]
[1763266347181,0.00124426,96067.0,96066.0,0.02569]
[1763266347587,0.00224426,96067.0,96066.0,0.02569]
[1763266348160,0.00124426,96067.0,96066.0,0.02569]
[1763266348610,0.00224426,96067.0,96066.0,0.02569]
[1763266348813,0.00224426,96067.0,96066.0,0.01065]
[1763266349626,0.00224426,96067.0,96066.0,0.03431]
[1763266349627,0.00124426,96067.0,96066.0,0.03431]
[1763266350047,0.00224426,96067.0,96066.0,0.03431]
[1763266350248,0.00124426,96067.0,96066.0,0.01065]
[1763266350648,0.00224426,96067.0,96066.0,0.01065]
[1763266350966,0.00124426,96067.0,96066.0,0.01065]
[1763266351289,0.00024426,96067.0,96066.0,0.01065]
[1763266351818,0.00124426,96067.0,96066.0,0.01065]
[1763266352151,0.00024426,96067.0,96066.0,0.01065]
[1763266352373,0.00124426,96067.0,96066.0,0.01065]
[1763266358397,0.00124426,96067.0,96066.0,0.03146902]
[1763266361388,0.00124426,96067.0,96066.0,0.01065]
[1763266364337,0.00124426,96067.0,96066.0,0.03092159]
[1763266366142,0.00124426,96067.0,96066.0,0.0682914]
[1763266367597,0.00124426,96067.0,96066.0,0.03092159]
[1763266368088,0.00124426,96067.0,96066.0,0.01065]
[1763266370150,0.00124426,96067.0,96066.0,0.06667354]
[1763266374562,0.00124426,96067.0,96066.0,0.01065]
[1763266375184,0.00124426,96067.0,96066.0,0.03559]
[1763266375703,0.00124426,96067.0,96066.0,0.01065]
[1763266376570,0.00124426,96067.0,96066.0,0.06667354]
[1763266376772,0.00124426,96067.0,96066.0,0.08749256]
[1763266379226,0.00124426,96067.0,96066.0,0.03146902]
[1763266379843,0.00124426,96067.0,96066.0,0.08749256]
[1763266380621,0.00124426,96067.0,96066.0,0.06667354]
[1763266381897,0.00124426,96067.0,96066.0,0.05602354]
[1763266382176,0.00124426,96067.0,96064.0,0.05602354]
[1763266383192,0.00024426,96067.0,96064.0,0.05602354]
[1763266383399,0.00124426,96067.0,96064.0,0.05602354]
[1763266384171,0.00124426,96067.0,96065.0,0.05602354]
[1763266384369,0.00024426,96067.0,96065.0,0.05602354]
[1763266384578,0.00124426,96067.0,96065.0,0.05602354]
[1763266385773,0.323,96063.0,96061.0,0.06875727]
[1763266385981,1.131774,96064.0,96045.0,0.01065]
[1763266385982,0.888449,96062.0,96060.0,0.03746501]
[1763266386189,0.323,96062.0,96059.0,0.03746501]
[1763266386396,0.01137,96055.0,96052.0,0.05602354]